lending/lending_fUSD_20251116
["ID","MTS","AMOUNT","RATE_DAILY","PERIOD"]
[394135494,1763314236324,-500.0,0.00017999,2]
[394135495,1763314236334,-500.0,0.00017999,2]
[394135496,1763314236344,-500.0,0.00017999,2]
[394135497,1763314236353,-500.0,0.00017999,2]
[394135498,1763314236363,-194.5394073,0.00017999,2]
[394135499,1763314236372,-500.0,0.00017999,2]
[394135500,1763314236381,-500.0,0.00017999,2]
[394135501,1763314236391,-500.0,0.00017999,2]
[394135502,1763314236400,-500.0,0.00017999,2]
[394135503,1763314236409,-500.0,0.00017999,2]
[394135504,1763314236419,-500.0,0.00017999,2]
[394135505,1763314236428,-500.0,0.00017999,2]
[394135506,1763314236438,-500.0,0.00017999,2]
[394135507,1763314236448,-508.6753912,0.00017999,2]
[394135508,1763314236457,-500.0,0.00017999,2]
[394135509,1763314236467,-500.0,0.00017999,2]
[394135510,1763314236477,-500.0,0.00017999,2]
[394135511,1763314236486,-500.0,0.00017999,2]
[394135512,1763314236496,-500.0,0.00017999,2]
[394135513,1763314236505,-500.0,0.00017999,2]
[394135514,1763314236514,-500.0,0.00017999,2]
[394135515,1763314236531,-500.0,0.00017999,2]
[394135516,1763314236540,-500.0,0.00017999,2]
[394135517,1763314236556,-500.0,0.00017999,2]
[394135518,1763314236565,-500.0,0.00017999,2]
[394135519,1763314236574,-25322.02316389,0.00018,2]
[394135520,1763314236599,-2263.02960155,0.00018,2]
[394135534,1763314238244,-507.25978616,0.00018,2]
[394135537,1763314238256,-335.85132895,0.00018,2]
[394135544,1763314238346,-3218858.43383191,0.00018,2]
[394135545,1763314238356,-323.91,0.00018,2]
[394135546,1763314238365,-500.0,0.00018021,2]
[394135547,1763314238375,-261.63,0.00018025,2]
[394135548,1763314238385,-480.0,0.00018027,2]
[394135549,1763314238395,-1071.42770396,0.00018035,2]
[394135550,1763314238405,-289.7874335,0.00018075,2]
[394135551,1763314238416,-420.0,0.00018108,2]
[394135552,1763314238426,-195.0,0.00018146,2]
[394135553,1763314238437,-250.0,0.00018146,2]
[394135554,1763314238448,-300.0,0.00018146,2]
[394135555,1763314238459,-195.0,0.00018146,2]
[394135556,1763314238469,-150.5502156,0.00018147,2]
[394135557,1763314238479,-300.0,0.00018147,2]
[394135558,1763314238489,-250.0,0.00018147,2]
[394135559,1763314238500,-195.0,0.00018147,2]
[394135560,1763314238510,-300.0,0.00018147,2]
[394135562,1763314238520,-200.0,0.00018231,2]
[394135564,1763314238529,-200.0,0.00018231,2]
[394135565,1763314238538,-505.52335219,0.00018521,2]
[394135567,1763314238550,-1004.62385187,0.00018521,2]
[394135570,1763314238747,-500.0,0.00018521,2]
[394135571,1763314238758,-1000.0,0.00018521,2]
[394135572,1763314238770,-494.75873842,0.00018521,2]
[394135573,1763314238781,-1000.0,0.00018521,2]
[394135574,1763314238791,-503.34067771,0.00018521,2]
[394135575,1763314238804,-300.0,0.00018664,2]
[394135576,1763314238814,-29732.30585519,0.00018674,2]
[394135577,1763314238825,-200.0,0.00018779,2]
[394135578,1763314238834,-200.0,0.00018779,2]
[394135579,1763314238844,-150.41,0.000188,2]
[394135580,1763314238854,-150.41,0.000188,2]
[394135581,1763314238863,-150.41,0.000188,2]
[394135582,1763314238873,-150.41,0.000188,2]
[394135583,1763314238883,-150.41,0.000188,2]
[394135584,1763314238892,-150.41,0.000188,2]
[394135585,1763314238902,-970.41177546,0.00019068,2]
[394135586,1763314238913,-1010.6439987,0.00019068,2]
[394135587,1763314238923,-150.41,0.00019072,2]
[394135588,1763314238934,-8641.26452543,0.00019082,2]
[394135589,1763314238944,-150.0,0.00019121,2]
[394135590,1763314238955,-151.0,0.00019178,2]
[394135591,1763314238965,-364.11489159,0.00019257,2]
[394135592,1763314238975,-207.4,0.00019326,2]
[394135593,1763314238985,-200.0,0.00019327,2]
[394135594,1763314238996,-200.0,0.00019327,2]
[394135595,1763314239006,-29732.30585519,0.00019427,2]
[394135596,1763314239017,-215.39383382,0.00019517,2]
[394135597,1763314239027,-160.16,0.00019555,2]
[394135598,1763314239036,-156.587,0.00019726,2]
[394135599,1763314239046,-587.0,0.00019786,2]
[394135600,1763314239059,-200.0,0.00019875,2]
[394135601,1763314239069,-200.0,0.00019875,2]
[394135602,1763314239078,-547.48,0.00019882,2]
[394135603,1763314239088,-1265.55639731,0.0002,5]
[394135604,1763314239096,-250.0,0.00020026,2]
[394135605,1763314239105,-1193.04476456,0.00020046,2]
[394135606,1763314239114,-1000.0,0.00020089,2]
[394135607,1763314239123,-29732.30585519,0.00020181,2]
[394135608,1763314239133,-822.27,0.00020187,2]
[394135609,1763314239142,-1794.39,0.00020212,2]
[394135610,1763314239152,-162.380719,0.00020274,2]
[394135611,1763314239161,-203.17721759,0.00020423,2]
[394135612,1763314239171,-202.58152099,0.00020423,2]
[394135613,1763314239180,-168.3888056,0.00020822,2]
[394135614,1763314239191,-300.0,0.00020832,2]
[394135615,1763314239200,-1000.0,0.00020843,2]
[394135616,1763314239211,-553.01947071,0.000209,2]
[394135617,1763314239221,-500.0,0.000209,2]
[394135618,1763314239231,-512.33896105,0.00020925,2]
[394135619,1763314239241,-29732.30585519,0.00020934,2]
[394135620,1763314239251,-1860.6834273,0.00021133,2]
[394135621,1763314239261,-160.16,0.00021333,2]
[394135622,1763314239270,-174.61919141,0.0002137,2]
[394135623,1763314239279,-6324.66,0.00021395,2]
[394135624,1763314239288,-500.0,0.0002145,2]
[394135625,1763314239297,-500.0,0.0002145,2]
[394135626,1763314239309,-500.0,0.0002145,2]
[394135627,1763314239318,-500.0,0.0002145,2]
[394135628,1763314239328,-500.0,0.0002145,2]
[394135629,1763314239337,-502.48139119,0.0002145,2]
[394135630,1763314239346,-501.91708826,0.0002145,2]
[394135631,1763314239356,-500.0,0.0002145,2]
[394135632,1763314239365,-500.0,0.0002145,2]
[394135633,1763314239375,-500.72296059,0.0002145,2]
[394135634,1763314239384,-505.67181755,0.0002145,2]
[394135635,1763314239394,-500.47868238,0.0002145,2]
[394135636,1763314239403,-500.0,0.0002145,2]
[394135637,1763314239412,-500.0,0.0002145,2]
[394135638,1763314239421,-486.89386542,0.0002145,2]
[394135639,1763314239431,-507.68650149,0.0002145,2]
[394135640,1763314239440,-500.0,0.0002145,2]
[394135641,1763314239449,-167.67940878,0.0002145,2]
[394135642,1763314239458,-1000.0,0.00021596,2]
[394135643,1763314239467,-823.0,0.0002162,2]
[394135644,1763314239477,-500.0,0.00021667,2]
[394135645,1763314239487,-501.04112126,0.00021667,2]
[394135646,1763314239496,-500.0,0.00021667,2]
[394135647,1763314239506,-200.0,0.00021667,2]
[394135648,1763314239516,-500.0,0.00021667,2]
[394135649,1763314239526,-500.0,0.00021667,2]
[394135650,1763314239535,-500.0,0.00021667,2]
[394135651,1763314239545,-500.0,0.00021667,2]
[394135652,1763314239563,-500.0,0.00021667,2]
[394135653,1763314239574,-29732.30585519,0.00021687,2]
[394135654,1763314239586,-500.0,0.000218,2]
[394135655,1763314239597,-153.37617007,0.00021918,2]
[394135656,1763314239608,-181.08010149,0.00021918,2]
[394135657,1763314239620,-1000.0,0.00021998,2]
[394135658,1763314239630,-502.51981297,0.00021998,2]
[394135659,1763314239641,-1000.0,0.00021998,2]
[394135660,1763314239651,-529.63023469,0.00021998,2]
[394135661,1763314239663,-505.47282258,0.00021998,2]
[394135662,1763314239675,-1000.0,0.00021998,2]
[394135663,1763314239686,-634.61976444,0.00021998,2]
[394135664,1763314239699,-794.71971133,0.00021998,2]
[394135665,1763314239711,-1192.55,0.00022,14]
[394135666,1763314239722,-1129.46,0.00022,7]
[394135667,1763314239737,-1130.10742645,0.00022,4]
[394135668,1763314239749,-364.11489159,0.00022018,2]
[394135669,1763314239760,-479.06402154,0.00022058,2]
[394135670,1763314239774,-215.0738,0.00022065,2]
[394135671,1763314239786,-169.13557338,0.00022174,2]
[394135672,1763314239797,-261.63,0.00022203,2]
[394135673,1763314239817,-1000.0,0.00022215,2]
[394135674,1763314239828,-500.0,0.00022215,2]
[394135675,1763314239839,-503.66483378,0.00022215,2]
[394135676,1763314239851,-1000.0,0.00022215,2]
[394135677,1763314239861,-681.77504315,0.00022215,2]
[394135678,1763314239871,-150.0,0.00022315,2]
[394135679,1763314239882,-150.0,0.00022315,2]
[394135680,1763314239892,-1000.0,0.00022349,2]
[394135681,1763314239902,-400.0,0.00022352,2]
[394135682,1763314239912,-193.03464017,0.00022366,2]
[394135683,1763314239922,-3430.0,0.0002241,2]
[394135684,1763314239932,-1604.0,0.0002241,2]
[394135685,1763314239945,-575.0,0.0002241,2]
[394135686,1763314239956,-29732.30585519,0.0002244,2]
[394135687,1763314239966,-187.78006525,0.00022466,2]
[394135688,1763314239975,-834.38895643,0.00022546,2]
[394135689,1763314239985,-1500.0,0.00022546,2]
[394135690,1763314239995,-205.41317705,0.00022662,4]
[394135691,1763314240005,-500.0,0.00022763,2]
[394135692,1763314240015,-500.0,0.00022763,2]
[394135693,1763314240024,-500.0,0.00022964,2]
[394135694,1763314240033,-194.72792766,0.00023014,2]
[394135695,1763314240043,-600.0,0.00023037,2]
[394135696,1763314240059,-1000.0,0.00023094,2]
[394135697,1763314240069,-1000.0,0.00023103,2]
[394135698,1763314240079,-29732.30585519,0.00023194,2]
[394135699,1763314240089,-2953.92967837,0.00023462,2]
[394135700,1763314240098,-167.02145463,0.00023562,2]
[394135701,1763314240108,-1193.04476456,0.00023595,2]
[394135703,1763314240117,-1152.0,0.00023625,2]
[394135704,1763314240126,-217.11743115,0.00023691,2]
[394135705,1763314240136,-800.0,0.00023721,2]
[394135706,1763314240145,-29732.30585519,0.00023947,2]
[394135707,1763314240155,-217.11743115,0.00023951,2]
[394135708,1763314240164,-821.0,0.00023973,2]
[394135709,1763314240174,-1599.0,0.00023973,2]
[394135711,1763314240184,-814.0,0.00023973,2]
[394135712,1763314240193,-1275.0,0.00023973,2]
[394135714,1763314240202,-1190.0,0.00023973,2]
[394135715,1763314240212,-907.0,0.00023973,2]
[394135716,1763314240222,-18639.0,0.00024001,2]
[394135717,1763314240231,-1623.02883624,0.0002414,2]
[394135718,1763314240241,-217.11743115,0.00024198,2]
[394135719,1763314240251,-347.64330208,0.0002424,2]
[394135720,1763314240262,-322.6107,0.0002424,2]
[394135721,1763314240271,-250.0,0.0002424,2]
[394135722,1763314240282,-250.0,0.0002424,2]
[394135723,1763314240292,-574.12855637,0.0002424,2]
[394135724,1763314240304,-250.0,0.0002424,2]
[394135725,1763314240313,-250.0,0.0002424,2]
[394135726,1763314240323,-250.0,0.0002424,2]
[394135727,1763314240332,-250.0,0.0002424,2]
[394135728,1763314240342,-250.0,0.0002424,2]
[394135729,1763314240352,-250.0,0.0002424,2]
[394135730,1763314240361,-250.0,0.0002424,2]
[394135731,1763314240370,-250.0,0.0002424,2]
[394135732,1763314240380,-250.0,0.0002424,2]
[394135733,1763314240390,-250.0,0.0002424,2]
[394135734,1763314240400,-337.84606576,0.0002424,2]
[394135735,1763314240409,-2000.0,0.0002424,2]
[394135736,1763314240419,-500.0,0.0002424,2]
[394135737,1763314240428,-161.0,0.0002424,2]
[394135738,1763314240438,-250.0,0.0002424,2]
[394135739,1763314240447,-2000.0,0.0002424,2]
[394135740,1763314240457,-500.0,0.0002424,2]
[394135741,1763314240467,-250.0,0.0002424,2]
[394135742,1763314240477,-2000.0,0.0002424,2]
[394135743,1763314240486,-500.0,0.0002424,2]
[394135744,1763314240496,-250.0,0.0002424,2]
[394135745,1763314240505,-2000.0,0.0002424,2]
[394135746,1763314240515,-500.0,0.0002424,2]
[394135747,1763314240525,-250.0,0.0002424,2]
[394135748,1763314240534,-568.03051561,0.0002424,2]
[394135749,1763314240543,-2000.0,0.0002424,2]
[394135750,1763314240557,-250.0,0.0002424,2]
[394135751,1763314240567,-2000.0,0.0002424,2]
[394135752,1763314240576,-2000.0,0.0002424,2]
[394135753,1763314240586,-2000.0,0.0002424,2]
[394135754,1763314240595,-2000.0,0.0002424,2]
[394135755,1763314240604,-2000.0,0.0002424,2]
[394135756,1763314240614,-500.0,0.0002424,2]
[394135757,1763314240623,-2000.0,0.0002424,2]
[394135758,1763314240632,-500.0,0.0002424,2]
[394135759,1763314240642,-500.0,0.0002424,2]
[394135760,1763314240651,-500.0,0.0002424,2]
[394135761,1763314240661,-500.0,0.0002424,2]
[394135762,1763314240670,-500.0,0.0002424,2]
[394135763,1763314240680,-500.0,0.0002424,2]
[394135764,1763314240689,-500.0,0.0002424,2]
[394135765,1763314240699,-500.0,0.0002424,2]
[394135766,1763314240708,-402.54326302,0.0002424,2]
[394135767,1763314240717,-500.0,0.0002424,2]
[394135768,1763314240726,-250.0,0.0002424,2]
[394135769,1763314240738,-500.0,0.0002424,2]
[394135770,1763314240747,-250.0,0.0002424,2]
[394135772,1763314240757,-500.0,0.0002424,2]
[394135773,1763314240770,-250.0,0.0002424,2]
[394135774,1763314240781,-500.0,0.0002424,2]
[394135775,1763314240790,-250.0,0.0002424,2]
[394135776,1763314240802,-500.0,0.0002424,2]
[394135777,1763314240812,-250.0,0.0002424,2]
[394135778,1763314240822,-250.0,0.0002424,2]
[394135779,1763314240832,-250.0,0.0002424,2]
[394135780,1763314240842,-250.0,0.0002424,2]
[394135781,1763314240852,-250.0,0.0002424,2]
[394135782,1763314240862,-250.0,0.0002424,2]
[394135783,1763314240872,-250.0,0.0002424,2]
[394135784,1763314240881,-250.0,0.0002424,2]
[394135785,1763314240892,-151.0,0.0002424,2]
[394135786,1763314240901,-250.0,0.0002424,2]
[394135787,1763314240911,-277.35679052,0.0002424,2]
[394135788,1763314240922,-1000.0,0.0002424,2]
[394135789,1763314240931,-1000.0,0.0002424,2]
[394135790,1763314240941,-1000.0,0.0002424,2]
[394135791,1763314240950,-1000.0,0.0002424,2]
[394135792,1763314240959,-1000.0,0.0002424,2]
[394135793,1763314240968,-1000.0,0.0002424,2]
[394135794,1763314240978,-1000.0,0.0002424,2]
[394135795,1763314240989,-1000.0,0.0002424,2]
[394135796,1763314240998,-1000.0,0.0002424,2]
[394135797,1763314241007,-1000.0,0.0002424,2]
[394135798,1763314241018,-1000.0,0.0002424,2]
[394135799,1763314241028,-164.00583255,0.00024273,2]
[394135800,1763314241038,-150.0,0.00024273,2]
[394135801,1763314241051,-486.04478817,0.00024373,2]
[394135802,1763314241062,-1002.62177573,0.00024406,2]
[394135803,1763314241073,-3211.004993,0.00024592,2]
[394135804,1763314241084,-217.11743117,0.00024629,2]
[394135805,1763314241094,-194096.0038925,0.00024668,2]
[394135806,1763314241104,-179267.35917737,0.00024668,2]
[394135807,1763314241125,-9162.00000001,0.00024668,2]
[394135808,1763314241227,-718.722,0.0002241,2]
[394135809,1763314241237,-227.6949038,0.00024668,2]
[394135810,1763314241249,-477.47419999,0.00024668,2]
[394135811,1763314241594,-1821.17259449,0.00024668,2]
[394135812,1763314241613,-2200.80585253,0.00024668,2]
[394135813,1763314241624,-364.39823043,0.00024668,2]
[394135814,1763314241635,-391.55999999,0.00024668,2]
[394135815,1763314241646,-768.40000003,0.00024668,2]
[394135816,1763314241659,-2359.175,0.00024668,2]
[394135854,1763314246393,-259.9394101,0.00023462,2]
[394135855,1763314246402,-529.45954875,0.00024668,2]
[394135856,1763314246559,-18787.74161629,0.00024668,2]
[394136267,1763314294459,584.68,0.0002632,120]
[394136268,1763314294660,584.68,0.00029244,120]
[394136269,1763314342133,2551.3,0.00011676,2]
[394136270,1763314342338,2551.3,0.00012291,2]
[394136271,1763314342542,2551.3,0.00012905,2]
[394136272,1763314342752,1842.86152,0.0001352,2]
[394136273,1763314342783,708.43848,0.0001352,2]
[394136274,1763314342980,2551.3,0.00014134,2]
[394136275,1763314343198,2551.3,0.00014749,2]
[394136276,1763314343619,2551.3,0.00015364,2]
[394136277,1763314343837,2551.3,0.00015978,2]
[394136279,1763314387839,7704.961757,7.945e-05,2]
[394136280,1763314389937,2304.85879458,0.0001352,2]
[394136281,1763314415772,500.0,0.00027397,120]
[394136282,1763314415952,500.0,0.00027452,120]
[394136283,1763314416128,500.0,0.00027507,120]
[394136284,1763314416319,500.0,0.00027561,120]
[394136285,1763314416529,489.693867,0.00027616,120]
[394136287,1763314621512,1000.0,0.0002765,120]
[394136288,1763314748928,199.511,0.0002765,120]
[394136290,1763314844331,261.92,0.00026068,120]
[394136291,1763314920352,166.66,0.00015379,2]
[394136292,1763314921025,166.66,0.00015702,2]
[394136293,1763314921066,166.66,0.00016026,2]
[394136295,1763315040636,283.98004244,0.00016,2]
[394136296,1763315104860,207.27,0.00016097,2]
[394136297,1763315149130,294.107666,0.00030137,120]
[394136301,1763315279307,150.0,0.0001585,2]
[394136302,1763315330955,150.0,0.0001585,2]
[394136303,1763315331204,150.0,0.0001585,120]
[394136304,1763315341246,150.0,0.00030136,120]
[394136305,1763315341697,4223.98,0.0001585,2]
[394136306,1763315378569,150.0,0.0001585,2]
[394136322,1763315431384,-176.90580965,0.00016263,2]
[394136323,1763315431394,-500.0,0.00016325,2]
[394136324,1763315431404,-195.0,0.00016338,2]
[394136325,1763315431414,-166.66,0.0001635,2]
[394136326,1763315431423,-300.0,0.00016372,2]
[394136327,1763315431434,-300.0,0.00016372,2]
[394136328,1763315431444,-300.0,0.00016372,2]
[394136329,1763315431454,-1200.0,0.00016372,2]
[394136330,1763315431464,-6532.60111035,0.00016373,2]
[394136331,1763315431485,-12303.27244483,0.00016373,2]
[394136332,1763315431548,-152.60759887,0.00016372,2]
[394136333,1763315431564,-456.23611494,0.00016372,2]
[394136334,1763315431577,-43.76388506,0.00016372,2]
[394136335,1763315431588,-500.0,0.00016372,2]
[394136336,1763315431599,-205129.01930312,0.00016373,2]
[394136337,1763315431610,-219907.99611256,0.00016373,2]
[394136338,1763315431621,-20989.74370359,0.00016373,2]
[394136339,1763315431632,-700.0,0.00016373,2]
[394136340,1763315431643,-1706.49592439,0.00016373,2]
[394136341,1763315431655,-1435.1029539,0.00016373,2]
[394136342,1763315431677,-673.596331,0.00016373,2]
[394136343,1763315431703,-300.0,0.00016373,2]
[394136386,1763315437885,-289.57190301,0.00016372,2]
[394136387,1763315437897,-210.42809699,0.00016372,2]
[394136388,1763315437907,-500.0,0.00016372,2]
[394136389,1763315437917,-500.0,0.00016372,2]
[394136390,1763315437926,-500.0,0.00016372,2]
[394136391,1763315437936,-500.0,0.00016372,2]
[394136392,1763315437945,-561.91017751,0.00016372,2]
[394136393,1763315437955,-500.0,0.00016372,2]
[394136394,1763315437964,-500.0,0.00016372,2]
[394136395,1763315437973,-500.0,0.00016372,2]
[394136396,1763315437983,-500.0,0.00016372,2]
[394136397,1763315437992,-80.99247975,0.00016372,2]
[394136398,1763315438003,-419.00752025,0.00016372,2]
[394136399,1763315438012,-121.00468021,0.00016372,2]
[394136400,1763315438024,-378.99531979,0.00016372,2]
[394136401,1763315438034,-500.0,0.00016372,2]
[394136402,1763315438043,-500.0,0.00016372,2]
[394136403,1763315438053,-500.0,0.00016372,2]
[394136404,1763315438063,-500.0,0.00016372,2]
[394136405,1763315438077,-500.0,0.00016372,2]
[394136406,1763315438086,-500.0,0.00016372,2]
[394136407,1763315438096,-500.0,0.00016372,2]
[394136408,1763315438107,-500.0,0.00016372,2]
[394136409,1763315438117,-500.0,0.00016372,2]
[394136410,1763315438127,-5879.03469532,0.00016373,2]
[394136411,1763315438147,-7181.63880342,0.00016373,2]
[394136412,1763315438159,-1168.8,0.00016373,2]
[394136413,1763315438170,-529.9294,0.00016373,2]
[394136431,1763315439615,-4506.07827832,0.00016373,2]
[394136461,1763315445624,-1103.67877698,0.00016373,2]
[394136462,1763315445731,-301.455,0.00016373,2]
[394136463,1763315445743,-300.0,0.00016373,2]
[394136464,1763315445754,-512.11882727,0.00016373,2]
[394136481,1763315726538,781.16,0.00013699,2]
[394136482,1763315805045,220.0,0.00013631,2]
[394136483,1763315844609,296.31603662,0.00015,20]
[394136484,1763316023244,344.5,0.00015707,2]
[394136485,1763316142053,25514.44,0.00015427,2]
[394136486,1763316188316,217.11743115,0.00015914,2]
[394136487,1763316229217,-496.46705718,0.00016172,2]
[394136488,1763316229239,-250.0,0.00016173,2]
[394136489,1763316229260,-1179.15582057,0.00016173,2]
[394136490,1763316229282,-496.46705718,0.00016186,2]
[394136491,1763316229302,-195.0,0.00016194,2]
[394136492,1763316229324,-496.46705718,0.000162,2]
[394136493,1763316229348,-4236.52829715,0.0001621,2]
[394136494,1763316229371,-195.0,0.00016225,2]
[394136495,1763316229392,-200.0,0.00016244,2]
[394136496,1763316229418,-300.0,0.0001627,2]
[394136497,1763316229439,-300.0,0.0001627,2]
[394136498,1763316229460,-5930.49375179,0.0001627,2]
[394136499,1763316231470,-4069.49624821,0.0001627,2]
[394136500,1763316231492,-239.97,0.0001627,2]
[394136501,1763316231513,-1454.31,0.0001627,2]
[394136502,1763316231534,-14336.39,0.0001627,2]
[394136503,1763316231555,-401.92771431,0.0001627,2]
[394136504,1763316233694,-151.0,0.0001627,2]
[394136505,1763316237786,-286.094522,0.0001627,2]
[394136506,1763316240526,-151.0,0.0001627,2]
[394136507,1763316242024,-151.0,0.00016269,2]
[394136508,1763316246953,-149.0,0.00016269,2]
[394136509,1763316246975,-2.0,0.0001627,2]
[394136510,1763316249148,-250.0,0.0001627,2]
[394136511,1763316249170,-310.0,0.0001627,2]
[394136512,1763316251828,-8382.86776369,0.0001627,2]
[394136513,1763316251850,-188.33344192,0.0001627,2]
[394136514,1763316255791,-5723.42655808,0.0001627,2]
[394136515,1763316255813,-1620.65749549,0.0001627,2]
[394136516,1763316260374,-6777.23250451,0.0001627,2]
[394136517,1763316260396,-1523.6,0.0001627,2]
[394136518,1763316260419,-1317.94042873,0.0001627,2]
[394136519,1763316263243,-288.20351911,0.0001627,2]
[394136520,1763316266028,-1760.65605216,0.0001627,2]
[394136521,1763316266048,-150.99,0.0001627,2]
[394136522,1763316266069,-9999.99,0.0001627,2]
[394136523,1763316266091,-1200.0,0.00016271,2]
[394136524,1763316266112,-1200.0,0.00016271,2]
[394136525,1763316266135,-550.0,0.00016271,2]
[394136526,1763316266155,-335.0391,0.00016272,2]
[394136527,1763316266176,-300.0,0.00016272,2]
[394136528,1763316266198,-81.55365764,0.00016272,2]
[394136529,1763316270351,-218.44634236,0.00016272,2]
[394136530,1763316270372,-8607.92033933,0.00016272,2]
[394136531,1763316270393,-707.5756,0.00016273,2]
[394136532,1763316270414,-3678.3429,0.00016273,2]
[394136533,1763316270436,-270.946,0.00016273,2]
[394136534,1763316270459,-1062.73968131,0.00016273,2]
[394136535,1763316270480,-15371.81399608,0.00016273,2]
[394136536,1763316272097,-382.44920829,0.00016273,2]
[394136567,1763316274367,-500.0,0.00016273,2]
[394136612,1763316277511,-500.0,0.00016273,2]
[394136613,1763316279658,-500.0,0.00016273,2]
[394136614,1763316281216,-491.19454123,0.00016273,2]
[394136615,1763316284433,-500.0,0.00016273,2]
[394136616,1763316285891,-500.0,0.00016273,2]
[394136617,1763316289641,-500.0,0.00016273,2]
[394136618,1763316291490,-500.0,0.00016273,2]
[394136620,1763316295376,-500.0,0.00016273,2]
[394136621,1763316297165,-500.0,0.00016273,2]
[394136623,1763316299272,-500.0,0.00016273,2]
[394136624,1763316301307,-500.0,0.00016273,2]
[394136625,1763316304988,-500.0,0.00016272,2]
[394136685,1763316393681,1000.0,0.00015739,2]
[394136686,1763316409865,2751.0,0.00015739,2]
[394136687,1763316426529,547.48,0.00015643,2]
[394136693,1763316448512,500.0,0.000158,5]
[394136723,1763316450614,1100.0,0.000159,5]
[394136727,1763316520981,-752.75,0.00016163,3]
[394136728,1763316521003,-1200.0,0.00016172,2]
[394136729,1763316521025,-47.25,0.00016172,2]
[394136730,1763316525055,-252.75,0.00016172,2]
[394136731,1763316525081,-1747.25,0.00016173,2]
[394136732,1763316526475,-2000.0,0.00016173,2]
[394136733,1763316527790,-2000.0,0.00016173,2]
[394136734,1763316529133,-2000.0,0.00016173,2]
[394136735,1763316530271,-2000.0,0.00016173,2]
[394136736,1763316541629,150.0,0.00030135,120]
[394136738,1763316557910,-500.0,0.00016172,2]
[394136739,1763316557939,-500.0,0.00016172,2]
[394136740,1763316557964,-500.0,0.00016172,2]
[394136741,1763316557989,-500.0,0.00016172,2]
[394136742,1763316560015,-500.0,0.00016172,2]
[394136743,1763316560040,-500.0,0.00016172,2]
[394136744,1763316560064,-500.0,0.00016172,2]
[394136745,1763316560088,-500.0,0.00016172,2]
[394136746,1763316561344,-500.0,0.00016172,2]
[394136747,1763316561371,-500.0,0.00016172,2]
[394136748,1763316561395,-500.0,0.00016172,2]
[394136749,1763316561420,-500.0,0.00016172,2]
[394136750,1763316562535,-500.0,0.00016172,2]
[394136751,1763316562561,-500.0,0.00016172,2]
[394136752,1763316562586,-347.47039232,0.00016172,2]
[394136753,1763316562609,-500.0,0.00016172,2]
[394136754,1763316562633,-152.52960768,0.00016172,2]
[394136755,1763316563524,-347.47039232,0.00016172,2]
[394136756,1763316563548,-500.0,0.00016172,2]
[394136757,1763316563573,-500.0,0.00016172,2]
[394136758,1763316563597,-500.0,0.00016172,2]
[394136759,1763316563621,-152.52960768,0.00016172,2]
[394136760,1763316581915,250.0,0.00015561,2]
[394136761,1763316589240,-347.47039232,0.00016172,2]
[394136762,1763316589264,-500.0,0.00016172,2]
[394136763,1763316589289,-500.0,0.00016172,2]
[394136764,1763316589313,-500.0,0.00016172,2]
[394136765,1763316589337,-152.52960768,0.00016172,2]
[394136766,1763316590976,-347.47039232,0.00016172,2]
[394136767,1763316591000,-500.0,0.00016172,2]
[394136768,1763316591022,-300.0,0.00016172,2]
[394136769,1763316591044,-550.0,0.00016172,2]